fUSD/lending_fUSD_20250623
["ID","MTS","AMOUNT","RATE_DAILY","PERIOD"]
[367120635,1750662783286,-1068.5,0.00032328,3]
[367120636,1750662783297,-492.43,0.00032328,3]
[367120637,1750662783308,-899.45,0.00032328,3]
[367120638,1750662783319,-1018.31,0.00032328,3]
[367120639,1750662783329,-1034.85,0.00032328,3]
[367120640,1750662783340,-1636.32,0.00032328,3]
[367120641,1750662783351,-636.43,0.00032328,3]
[367120642,1750662783361,-514.73,0.00032328,3]
[367120643,1750662783372,-1597.54,0.00032328,3]
[367120644,1750662783383,-878.08,0.00032328,3]
[367120645,1750662783394,-933.44,0.00032328,3]
[367120646,1750662783405,-980.14,0.00032328,3]
[367120647,1750662783415,-1351.29,0.00032328,3]
[367120648,1750662783428,-490.0,0.00032328,3]
[367120649,1750662783439,-1021.72,0.00032328,3]
[367120650,1750662783450,-490.0,0.00032328,3]
[367120651,1750662783460,-2515.92,0.00032328,3]
[367120652,1750662783471,-563.49,0.00032328,3]
[367120653,1750662783481,-973.74,0.00032328,3]
[367120654,1750662783491,-718.42,0.00032328,3]
[367120655,1750662783503,-369.35932319,0.00032328,3]
[367120656,1750662783514,-490.0,0.00032328,3]
[367120657,1750662783525,-763.59,0.00032328,3]
[367120658,1750662783539,-1171.08,0.00032328,3]
[367120659,1750662783549,-806.32,0.00032328,3]
[367120660,1750662783560,-1313.3,0.00032328,3]
[367120661,1750662783571,-1866.63,0.00032328,3]
[367120662,1750662783581,-783.39,0.00032328,3]
[367120663,1750662783592,-1408.5,0.00032328,3]
[367120664,1750662783602,-760.51,0.00032328,3]
[367120665,1750662783613,-640.07,0.00032328,3]
[367120666,1750662783623,-1113.91,0.00032328,3]
[367120667,1750662783634,-1204.57,0.00032328,3]
[367120668,1750662783644,-1615.12,0.00032328,3]
[367120669,1750662783655,-852.31,0.00032328,3]
[367120670,1750662783666,-1617.57,0.00032328,3]
[367120671,1750662783678,-1344.16,0.00032328,3]
[367120672,1750662783688,-1189.28,0.00032328,3]
[367120673,1750662783699,-924.24,0.00032328,3]
[367120674,1750662783710,-1017.87,0.00032328,3]
[367120675,1750662783721,-1327.65,0.00032328,3]
[367120676,1750662783732,-816.97,0.00032328,3]
[367120677,1750662783742,-1505.21,0.00032328,3]
[367120678,1750662784018,-301.99797292,0.00032328,3]
[367120679,1750662784039,-1444.07,0.00032328,3]
[367120680,1750662784050,-490.0,0.00032328,3]
[367120681,1750662784059,-995.43,0.00032328,3]
[367120682,1750662784069,-3010.94,0.00032328,2]
[367120683,1750662784079,-1097.45,0.00032328,3]
[367120684,1750662784089,-490.0,0.00032328,3]
[367120685,1750662784099,-753.53,0.00032328,3]
[367120686,1750662784109,-1037.06,0.00032328,3]
[367120687,1750662784119,-1995.53,0.00032328,3]
[367120688,1750662784128,-490.0,0.00032328,3]
[367120689,1750662784138,-752.2,0.00032328,3]
[367120690,1750662784149,-660.48,0.00032328,3]
[367120691,1750662784159,-1341.44,0.00032328,3]
[367120692,1750662784169,-850.05,0.00032328,3]
[367120693,1750662784179,-581.79,0.00032328,3]
[367120694,1750662784189,-2153.23,0.00032328,3]
[367120695,1750662784200,-557.61,0.00032328,3]
[367120696,1750662784210,-507.29,0.00032328,3]
[367120697,1750662784220,-572.59,0.00032328,3]
[367120698,1750662784231,-2413.05,0.00032328,3]
[367120699,1750662784241,-1348.78,0.00032328,3]
[367120700,1750662784251,-566.43,0.00032328,3]
[367120701,1750662784261,-2316.4,0.00032328,3]
[367120702,1750662784271,-1609.27,0.00032328,3]
[367120703,1750662784281,-490.0,0.00032328,3]
[367120704,1750662784292,-569.99,0.00032328,3]
[367120705,1750662784302,-490.0,0.00032328,3]
[367120706,1750662784312,-490.0,0.00032328,3]
[367120707,1750662784322,-2663.87,0.00032328,3]
[367120708,1750662784332,-731.27,0.00032328,3]
[367120709,1750662784343,-861.6,0.00032328,3]
[367120710,1750662784353,-560.0,0.00032328,3]
[367120711,1750662784363,-1117.5,0.00032328,3]
[367120712,1750662784373,-921.04,0.00032328,3]
[367120713,1750662784382,-783.55,0.00032328,3]
[367120714,1750662784392,-600.11,0.00032328,3]
[367120715,1750662784401,-1052.0,0.00032328,3]
[367120716,1750662784411,-490.0,0.00032328,3]
[367120717,1750662784421,-785.27,0.00032328,3]
[367120718,1750662784430,-595.61,0.00032328,3]
[367120719,1750662784440,-950.58,0.00032328,3]
[367120720,1750662784449,-1688.41,0.00032328,3]
[367120721,1750662784459,-1953.41,0.00032328,3]
[367120722,1750662784469,-1726.17,0.00032328,3]
[367120723,1750662784479,-1456.32,0.00032328,3]
[367120724,1750662784489,-1698.32,0.00032328,3]
[367120725,1750662784499,-603.07,0.00032328,3]
[367120726,1750662784509,-1007.06,0.00032328,3]
[367120727,1750662784519,-1681.01,0.00032328,3]
[367120728,1750662784531,-1708.4,0.00032328,3]
[367120729,1750662784541,-873.29,0.00032328,3]
[367120730,1750662784551,-1098.59,0.00032328,3]
[367120731,1750662784561,-1944.53,0.00032328,3]
[367120732,1750662784571,-490.0,0.00032328,3]
[367120733,1750662784583,-2433.81,0.00032328,3]
[367120734,1750662784594,-577.0,0.00032328,3]
[367120735,1750662784606,-750.42,0.00032328,3]
[367120736,1750662784616,-662.45,0.00032328,3]
[367120737,1750662784626,-501.38,0.00032328,3]
[367120738,1750662784635,-1247.14,0.00032328,3]
[367120739,1750662784645,-1551.77,0.00032328,3]
[367120740,1750662784656,-1650.44,0.00032328,3]
[367120741,1750662784666,-529.91,0.00032328,3]
[367120742,1750662784676,-490.0,0.00032328,3]
[367120743,1750662784686,-703.59,0.00032328,3]
[367120744,1750662784696,-788.62,0.00032328,3]
[367120745,1750662784707,-912.47,0.00032328,3]
[367120746,1750662784716,-1251.29,0.00032328,3]
[367120747,1750662784726,-655.66,0.00032328,3]
[367120748,1750662784736,-675.57,0.00032328,3]
[367120749,1750662784745,-1664.2,0.00032328,3]
[367120750,1750662784755,-1433.27,0.00032328,3]
[367120751,1750662784765,-1679.9,0.00032328,3]
[367120752,1750662784775,-1066.4,0.00032328,3]
[367120753,1750662784785,-490.0,0.00032328,3]
[367120754,1750662784794,-572.95,0.00032328,3]
[367120755,1750662784804,-490.0,0.00032328,3]
[367120756,1750662784814,-1605.51,0.00032328,3]
[367120757,1750662784824,-1690.95,0.00032328,3]
[367120758,1750662784834,-490.0,0.00032328,3]
[367120759,1750662784845,-490.0,0.00032328,3]
[367120760,1750662784854,-1674.28,0.00032328,3]
[367120761,1750662784863,-638.77,0.00032328,3]
[367120762,1750662784873,-1574.11,0.00032328,3]
[367120763,1750662784883,-378.81,0.00032328,3]
[367120764,1750662784892,-684.38,0.00032328,3]
[367120765,1750662784902,-1278.36,0.00032328,3]
[367120766,1750662784912,-905.6,0.00032328,3]
[367120767,1750662784923,-1682.39,0.00032328,3]
[367120768,1750662784932,-1126.22,0.00032328,3]
[367120769,1750662784942,-1883.69,0.00032328,3]
[367120770,1750662784952,-7415.21,0.00032328,3]
[367120771,1750662784961,-1410.38,0.00032328,3]
[367120772,1750662784971,-2332.56,0.00032328,3]
[367120773,1750662784980,-1449.04,0.00032328,3]
[367120774,1750662784990,-849.69,0.00032328,3]
[367120775,1750662784999,-883.32,0.00032328,3]
[367120776,1750662785009,-1248.93,0.00032328,3]
[367120777,1750662785019,-901.3,0.00032328,3]
[367120778,1750662785028,-587.88,0.00032328,3]
[367120779,1750662785038,-1164.04,0.00032328,3]
[367120780,1750662785047,-1753.14,0.00032328,3]
[367120781,1750662785057,-10399.38,0.00032328,3]
[367120782,1750662785066,-4073.96,0.00032328,3]
[367120783,1750662785076,-580.67,0.00032328,3]
[367120784,1750662785085,-1448.46,0.00032328,3]
[367120785,1750662785094,-836.73,0.00032328,3]
[367120786,1750662785104,-918.93,0.00032328,3]
[367120787,1750662785113,-1355.08,0.00032328,3]
[367120788,1750662785123,-526.35,0.00032328,3]
[367120789,1750662785132,-1900.51,0.00032328,3]
[367120790,1750662785142,-6824.52,0.00032328,3]
[367120791,1750662785152,-1016.76,0.00032328,3]
[367120792,1750662785161,-3401.6,0.00032328,3]
[367120793,1750662785171,-3966.47,0.00032328,3]
[367120794,1750662785184,-490.0,0.00032328,3]
[367120795,1750662785194,-490.0,0.00032328,3]
[367120796,1750662785204,-909.73,0.00032328,3]
[367120797,1750662785214,-934.07,0.00032328,3]
[367120798,1750662785224,-4949.36,0.00032328,3]
[367120799,1750662785234,-2915.88,0.00032328,3]
[367120800,1750662785243,-1741.72,0.00032328,3]
[367120801,1750662785252,-1585.93,0.00032328,3]
[367120802,1750662785262,-490.0,0.00032328,3]
[367120803,1750662785272,-490.0,0.00032328,3]
[367120804,1750662785282,-608.52,0.00032328,3]
[367120805,1750662785291,-18062.45,0.00032328,3]
[367120806,1750662785304,-3468.99,0.00032328,3]
[367120807,1750662785314,-1570.58,0.00032328,3]
[367120808,1750662785323,-1672.97,0.00032328,3]
[367120809,1750662785332,-789.6,0.00032328,3]
[367120810,1750662785342,-798.22,0.00032328,3]
[367120811,1750662785351,-1533.06,0.00032328,3]
[367120812,1750662785361,-1681.4,0.00032328,3]
[367120813,1750662785370,-814.19,0.00032328,3]
[367120814,1750662785380,-528.64,0.00032328,3]
[367120815,1750662785390,-1980.76,0.00032328,3]
[367120816,1750662785399,-1108.02,0.00032328,3]
[367120817,1750662785409,-2594.4,0.00032328,3]
[367120818,1750662785418,-490.0,0.00032328,3]
[367120819,1750662785437,-1623.55,0.00032328,3]
[367120820,1750662785447,-490.0,0.00032328,3]
[367120821,1750662785456,-891.21,0.00032328,3]
[367120822,1750662785466,-1019.18,0.00032328,3]
[367120823,1750662785475,-1174.99,0.00032328,3]
[367120824,1750662785485,-3127.29,0.00032328,3]
[367120825,1750662785496,-1569.21,0.00032328,3]
[367120826,1750662785507,-1940.59,0.00032328,3]
[367120827,1750662785517,-2329.34,0.00032328,3]
[367120828,1750662785527,-664.92,0.00032328,3]
[367120829,1750662785539,-1830.85,0.00032328,3]
[367120830,1750662785549,-1700.21,0.00032328,3]
[367120831,1750662785558,-2769.81,0.00032328,3]
[367120832,1750662785568,-6713.02,0.00032328,3]
[367120833,1750662785578,-777.56,0.00032328,3]
[367120834,1750662785588,-744.42,0.00032328,3]
[367120835,1750662785598,-2394.73,0.00032328,3]
[367120836,1750662785607,-826.09,0.00032328,3]
[367120837,1750662785617,-1294.78,0.00032328,3]
[367120838,1750662785627,-490.0,0.00032328,3]
[367120839,1750662785637,-760.04,0.00032328,3]
[367120840,1750662785646,-1749.09,0.00032328,3]
[367120841,1750662785655,-490.0,0.00032328,3]
[367120842,1750662785665,-555.71,0.00032328,3]
[367120843,1750662785677,-1626.24,0.00032328,3]
[367120844,1750662785688,-4056.64,0.00032328,3]
[367120845,1750662785698,-490.0,0.00032328,3]
[367120846,1750662785708,-1498.64,0.00032328,3]
[367120847,1750662785719,-1457.21,0.00032328,3]
[367120848,1750662785728,-490.0,0.00032328,3]
[367120849,1750662785739,-737.54,0.00032328,3]
[367120850,1750662785750,-1307.83,0.00032328,3]
[367120851,1750662785761,-728.06,0.00032328,3]
[367120852,1750662785771,-1832.35,0.00032328,3]
[367120853,1750662785782,-305.78350252,0.00032328,3]
[367120854,1750662785792,-1380.67,0.00032328,3]
[367120855,1750662785801,-2228.14,0.00032328,3]
[367120856,1750662785811,-2372.02,0.00032328,3]
[367120857,1750662785820,-3318.96,0.00032328,3]
[367120858,1750662785831,-709.01,0.00032328,3]
[367120859,1750662785842,-862.45,0.00032328,3]
[367120860,1750662785852,-788.8,0.00032328,3]
[367120861,1750662785862,-1200.13,0.00032328,3]
[367120862,1750662785872,-1916.86,0.00032328,3]
[367120863,1750662785881,-678.77,0.00032328,3]
[367120864,1750662785891,-4654.08,0.00032328,3]
[367120865,1750662785900,-1366.52,0.00032328,3]
[367120866,1750662785910,-788.62,0.00032328,3]
[367120867,1750662785920,-515.04,0.00032328,3]
[367120868,1750662785937,-553.78,0.00032328,3]
[367120869,1750662785947,-1107.26,0.00032328,3]
[367120870,1750662785957,-498.97,0.00032328,3]
[367120871,1750662785967,-7394.17,0.00032328,3]
[367120872,1750662785977,-1624.99,0.00032328,3]
[367120873,1750662785986,-1578.33,0.00032328,3]
[367120874,1750662785996,-2834.49,0.00032328,3]
[367120875,1750662786006,-1036.64,0.00032328,3]
[367120876,1750662786015,-12536.04,0.00032328,3]
[367120877,1750662786025,-3543.99,0.00032328,3]
[367120878,1750662786034,-1768.62,0.00032328,3]
[367120879,1750662786043,-497.45,0.00032328,3]
[367120880,1750662786053,-1619.96,0.00032328,3]
[367120881,1750662786063,-510.41,0.00032328,3]
[367120882,1750662786072,-5190.35,0.00032328,3]
[367120883,1750662786082,-9852.89,0.00032328,3]
[367120884,1750662786091,-490.0,0.00032328,3]
[367120885,1750662786101,-1552.44,0.00032328,3]
[367120886,1750662786111,-814.87,0.00032328,3]
[367120887,1750662786120,-2783.14,0.00032328,3]
[367120888,1750662786129,-510.26,0.00032328,3]
[367120889,1750662786139,-1717.08,0.00032328,3]
[367120890,1750662786148,-1947.91,0.00032328,3]
[367120891,1750662786158,-1630.26,0.00032328,3]
[367120892,1750662786167,-2330.84,0.00032328,3]
[367120893,1750662786182,-752.02,0.00032328,3]
[367120894,1750662786192,-1618.67,0.00032328,3]
[367120895,1750662786201,-490.0,0.00032328,3]
[367120896,1750662786211,-1776.65,0.00032328,3]
[367120897,1750662786221,-915.84,0.00032328,3]
[367120898,1750662786231,-1151.97,0.00032328,3]
[367120899,1750662786241,-670.37,0.00032328,3]
[367120900,1750662786250,-1591.01,0.00032328,3]
[367120901,1750662786260,-3986.65,0.00032328,3]
[367120902,1750662786270,-6065.53,0.00032328,3]
[367120903,1750662786280,-1642.63,0.00032328,3]
[367120904,1750662786290,-1605.38,0.00032328,3]
[367120905,1750662786300,-1960.82,0.00032328,3]
[367120906,1750662786310,-1292.66,0.00032328,3]
[367120907,1750662786319,-798.12,0.00032328,3]
[367120908,1750662786330,-2292.5,0.00032328,3]
[367120909,1750662786339,-2903.63,0.00032328,3]
[367120910,1750662786349,-1562.1,0.00032328,3]
[367120911,1750662786358,-4219.23,0.00032328,3]
[367120912,1750662786368,-765.43,0.00032328,3]
[367120913,1750662786378,-1872.32,0.00032328,3]
[367120914,1750662786387,-3240.53,0.00032328,3]
[367120915,1750662786494,-492.32,0.00032328,3]
[367120916,1750662786504,-1499.13,0.00032328,3]
[367120917,1750662786515,-1684.89,0.00032328,3]
[367120918,1750662786524,-1822.31,0.00032328,3]
[367120919,1750662786535,-2262.37,0.00032328,3]
[367120920,1750662786547,-745.32,0.00032328,3]
[367120921,1750662786557,-1565.33,0.00032328,3]
[367120922,1750662786568,-1599.78,0.00032328,3]
[367120923,1750662786579,-3248.59,0.00032328,3]
[367120924,1750662786588,-795.18,0.00032328,3]
[367120925,1750662786598,-638.67,0.00032328,3]
[367120926,1750662786607,-8785.1,0.00032328,3]
[367120927,1750662786618,-849.6,0.00032328,3]
[367120928,1750662786628,-1787.94,0.00032328,3]
[367120929,1750662786638,-1444.68,0.00032328,3]
[367120930,1750662786647,-1335.88,0.00032328,3]
[367120931,1750662786657,-948.02,0.00032328,3]
[367120932,1750662786667,-490.0,0.00032328,3]
[367120933,1750662786679,-1583.66,0.00032328,3]
[367120934,1750662786689,-507.9,0.00032328,3]
[367120935,1750662786700,-3963.91,0.00032328,3]
[367120936,1750662786709,-1578.99,0.00032328,3]
[367120937,1750662786719,-1445.82,0.00032328,3]
[367120938,1750662786729,-1285.59,0.00032328,3]
[367120939,1750662786738,-606.25,0.00032328,3]
[367120940,1750662786747,-728.45,0.00032328,3]
[367120941,1750662786757,-806.96,0.00032328,3]
[367120942,1750662786766,-1797.81,0.00032328,3]
[367120943,1750662786775,-1831.64,0.00032328,3]
[367120944,1750662786785,-1432.05,0.00032328,3]
[367120945,1750662786794,-919.07,0.00032328,3]
[367120946,1750662786804,-292.56437111,0.00032328,3]
[367120947,1750662786814,-14900.62,0.00032328,3]
[367120948,1750662786823,-1833.67,0.00032328,3]
[367120949,1750662786833,-2078.39,0.00032328,3]
[367120950,1750662786843,-510.45,0.00032328,3]
[367120951,1750662786852,-4833.93,0.00032328,3]
[367120952,1750662786862,-1601.31,0.00032328,3]
[367120953,1750662786871,-759.06,0.00032328,3]
[367120954,1750662786880,-873.41,0.00032328,3]
[367120955,1750662786890,-4669.42,0.00032328,3]
[367120956,1750662786899,-791.68,0.00032328,3]
[367120957,1750662786909,-1693.53,0.00032328,3]
[367120958,1750662786918,-990.18,0.00032328,3]
[367120959,1750662786930,-1034.99,0.00032328,3]
[367120960,1750662786939,-1620.6,0.00032328,3]
[367120961,1750662786948,-1653.45,0.00032328,3]
[367120962,1750662786957,-1389.7,0.00032328,3]
[367120963,1750662786967,-3451.15,0.00032328,3]
[367120964,1750662786977,-2416.24,0.00032328,3]
[367120965,1750662786986,-993.54,0.00032328,3]
[367120966,1750662786996,-11090.94,0.00032328,3]
[367120967,1750662787006,-1799.28,0.00032328,3]
[367120968,1750662787015,-1701.67,0.00032328,3]
[367120969,1750662787025,-2070.18,0.00032328,3]
[367120970,1750662787034,-1221.42,0.00032328,3]
[367120971,1750662787043,-1378.47,0.00032328,3]
[367120972,1750662787053,-1736.17,0.00032328,3]
[367120973,1750662787063,-1087.15,0.00032328,3]
[367120974,1750662787072,-1816.97,0.00032328,3]
[367120975,1750662787082,-1834.95,0.00032328,3]
[367120976,1750662787091,-709.09,0.00032328,3]
[367120977,1750662787100,-1672.0,0.00032328,3]
[367120978,1750662787110,-1571.12,0.00032328,3]
[367120979,1750662787119,-1351.61,0.00032328,3]
[367120980,1750662787128,-490.0,0.00032328,3]
[367120981,1750662787137,-4884.01,0.00032328,3]
[367120982,1750662787146,-1729.07,0.00032328,3]
[367120983,1750662787155,-8073.75,0.00032328,3]
[367120984,1750662787164,-1652.26,0.00032328,3]
[367120985,1750662787175,-867.32,0.00032328,3]
[367120986,1750662787185,-1482.76,0.00032328,3]
[367120987,1750662787195,-30050.84,0.00032328,3]
[367120988,1750662787205,-1513.2,0.00032328,3]
[367120989,1750662787215,-1869.9,0.00032328,3]
[367120990,1750662787224,-825.47,0.00032328,3]
[367120991,1750662787234,-1291.21,0.00032328,3]
[367120992,1750662787244,-718.8,0.00032328,3]
[367120993,1750662787253,-529.57,0.00032328,3]
[367120994,1750662787263,-1013.98,0.00032328,2]
[367120995,1750662787273,-749.71,0.00032328,3]
[367120996,1750662787282,-2626.45,0.00032328,3]
[367120997,1750662787292,-1301.95,0.00032328,3]
[367120998,1750662787301,-1000.93,0.00032328,3]
[367120999,1750662787311,-914.97,0.00032328,3]
[367121000,1750662787320,-5331.91,0.00032328,3]
[367121001,1750662787331,-6188.74,0.00032328,3]
[367121002,1750662787340,-2204.74,0.00032328,3]
[367121003,1750662787350,-733.17,0.00032328,3]
[367121004,1750662787359,-742.07,0.00032328,3]
[367121005,1750662787369,-1553.91,0.00032328,3]
[367121006,1750662787378,-1201.89,0.00032328,3]
[367121007,1750662787388,-716.87,0.00032328,3]
[367121008,1750662787397,-866.05,0.00032328,3]
[367121009,1750662787406,-490.0,0.00032328,3]
[367121010,1750662787416,-5637.09,0.00032328,3]
[367121011,1750662787427,-1651.87,0.00032328,3]
[367121012,1750662787436,-2465.19,0.00032328,3]
[367121013,1750662787445,-984.57,0.00032328,3]
[367121014,1750662787454,-1607.85,0.00032328,3]
[367121015,1750662787463,-572.05,0.00032328,3]
[367121016,1750662787472,-1536.26,0.00032328,3]
[367121017,1750662787481,-1906.99,0.00032328,3]
[367121018,1750662787491,-1920.56,0.00032328,3]
[367121019,1750662787500,-1131.73,0.00032328,3]
[367121020,1750662787510,-764.72,0.00032328,3]
[367121021,1750662787519,-2965.58,0.00032328,3]
[367121022,1750662787529,-594.04,0.00032328,3]
[367121023,1750662787541,-1258.03765544,0.00032348,26]
[367121024,1750662787550,-2154.43,0.000324,2]
[367121025,1750662787560,-2000.0,0.000324,32]
[367121026,1750662787569,-227.38,0.00032459,2]
[367121027,1750662787578,-1224.0,0.00032466,2]
[367121028,1750662787587,-2000.0,0.000325,36]
[367121029,1750662787596,-500.0,0.000325,2]
[367121030,1750662787605,-500.0,0.000325,2]
[367121031,1750662787615,-500.0,0.000325,2]
[367121032,1750662787623,-500.0,0.000325,2]
[367121033,1750662787632,-500.0,0.000325,2]
[367121034,1750662787642,-500.0,0.000325,2]
[367121035,1750662787651,-500.0,0.000325,2]
[367121036,1750662787660,-500.0,0.000325,2]
[367121037,1750662787669,-500.0,0.000325,2]
[367121038,1750662787680,-500.0,0.000325,2]
[367121039,1750662787689,-500.0,0.000325,2]
[367121040,1750662787699,-500.0,0.000325,2]
[367121041,1750662787709,-500.0,0.000325,2]
[367121042,1750662787718,-500.0,0.000325,2]
[367121043,1750662787728,-500.0,0.000325,2]
[367121044,1750662787737,-500.0,0.000325,2]
[367121045,1750662787747,-500.0,0.000325,2]
[367121046,1750662787756,-525.0,0.000325,2]
[367121047,1750662787766,-500.0,0.000325,2]
[367121048,1750662787775,-500.0,0.000325,2]
[367121049,1750662787784,-500.0,0.000325,2]
[367121050,1750662787793,-500.0,0.000325,2]
[367121051,1750662787803,-500.0,0.000325,2]
[367121052,1750662787812,-504.0,0.000325,2]
[367121053,1750662787822,-211.0,0.0003252,2]
[367121054,1750662787831,-150.19,0.00032534,2]
[367121055,1750662787841,-152.0,0.00032536,4]
[367121056,1750662787850,-500.0,0.00032567,7]
[367121057,1750662787859,-1224.0,0.00032595,2]
[367121058,1750662787868,-2000.0,0.000326,36]
[367121059,1750662787878,-5455.753665,0.00032602,3]
[367121060,1750662787887,-906.91,0.00032602,3]
[367121061,1750662787896,-765.27,0.00032602,3]
[367121062,1750662787906,-351.90548316,0.00032602,3]
[367121063,1750662787915,-252.921479,0.00032602,3]
[367121064,1750662787925,-958.78,0.00032602,3]
[367121065,1750662787935,-972.11,0.00032602,3]
[367121066,1750662787945,-548.42,0.00032602,3]
[367121067,1750662787954,-548.42,0.00032602,3]
[367121068,1750662787963,-2591.829598,0.00032602,3]
[367121069,1750662787972,-615.11,0.00032602,3]
[367121070,1750662787982,-804.23,0.00032602,3]
[367121071,1750662787991,-1075.31,0.00032602,3]
[367121072,1750662788001,-692.3,0.00032602,3]
[367121073,1750662788010,-811.41,0.00032602,3]
[367121074,1750662788020,-490.0,0.00032602,3]
[367121075,1750662788030,-695.49,0.00032602,3]
[367121076,1750662788040,-490.0,0.00032602,3]
[367121077,1750662788051,-977.66,0.00032602,3]
[367121078,1750662788061,-833.21,0.00032602,3]
[367121079,1750662788072,-591.25,0.00032602,3]
[367121080,1750662788083,-690.16,0.00032602,3]
[367121081,1750662788093,-1109.36,0.00032602,3]
[367121082,1750662788105,-433.45335095,0.00032602,3]
[367121083,1750662788115,-526.92,0.00032602,3]
[367121084,1750662788125,-519.11,0.00032602,3]
[367121085,1750662788136,-490.0,0.00032602,3]
[367121086,1750662788145,-970.12,0.00032602,3]
[367121087,1750662788155,-1478.36,0.00032602,3]
[367121088,1750662788165,-1376.6,0.00032602,3]
[367121089,1750662788175,-889.62,0.00032602,3]
[367121090,1750662788185,-1155.19,0.00032602,3]
[367121091,1750662788195,-490.0,0.00032602,3]
[367121092,1750662788205,-495.01,0.00032602,3]
[367121093,1750662788214,-668.52,0.00032602,3]
[367121094,1750662788224,-611.64,0.00032602,3]
[367121095,1750662788234,-698.01,0.00032602,3]
[367121096,1750662788244,-644.39,0.00032602,3]
[367121097,1750662788254,-617.7,0.00032602,3]
[367121098,1750662788264,-826.8,0.00032602,3]
[367121099,1750662788274,-490.0,0.00032602,3]
[367121100,1750662788284,-490.0,0.00032602,3]
[367121101,1750662788295,-626.46,0.00032602,3]
[367121102,1750662788305,-841.55,0.00032602,3]
[367121103,1750662788314,-625.27,0.00032602,3]
[367121104,1750662788324,-1584.78,0.00032602,3]
[367121105,1750662788334,-490.0,0.00032602,3]
[367121106,1750662788344,-490.0,0.00032602,3]
[367121107,1750662788354,-1089.25,0.00032602,3]
[367121108,1750662788364,-914.26,0.00032602,3]
[367121109,1750662788374,-777.39,0.00032602,3]
[367121110,1750662788384,-667.3,0.00032602,3]
[367121111,1750662788394,-1172.55,0.00032602,3]
[367121112,1750662788403,-153.552939,0.00032602,3]
[367121113,1750662788413,-857.69,0.00032602,3]
[367121114,1750662788423,-601.26,0.00032602,3]
[367121115,1750662788434,-654.18,0.00032602,3]
[367121116,1750662788444,-1486.14,0.00032602,3]
[367121117,1750662788454,-563.6,0.00032602,3]
[367121118,1750662788464,-641.56,0.00032602,3]
[367121119,1750662788474,-2328.1,0.00032602,3]
[367121120,1750662788484,-490.0,0.00032602,3]
[367121121,1750662788494,-2984.61,0.00032602,3]
[367121122,1750662788504,-834.55,0.00032602,3]
[367121123,1750662788513,-1714.75,0.00032602,3]
[367121124,1750662788523,-1666.5,0.00032602,3]
[367121125,1750662788536,-579.07,0.00032602,3]
[367121126,1750662788547,-774.87,0.00032602,3]
[367121127,1750662788557,-523.64,0.00032602,3]
[367121128,1750662788567,-1685.1,0.00032602,3]
[367121129,1750662788578,-198.016965,0.00032602,3]
[367121130,1750662788587,-685.83,0.00032602,3]
[367121131,1750662788598,-845.32,0.00032602,3]
[367121132,1750662788607,-1003.013708,0.00032602,3]
[367121133,1750662788618,-407.03,0.00032602,3]
[367121134,1750662788628,-490.0,0.00032602,3]